[Event "African Games Rapid Open 2019"]
[Site "Casablanca"]
[Date "2019.08.26"]
[Round "4.8"]
[White "Mphungu, Gerrard"]
[Black "Aderito, Pedro"]
[Result "0-1"]
[ECO "D70"]
[WhiteElo "2107"]
[BlackElo "2301"]
[Annotator "NA"]
[PlyCount "52"]
[EventDate "2019.08.26"]
[EventType "team-tourn"]
[EventCountry "MAR"]
[SourceTitle "playchess.com"]
[Source "ChessBase"]
[SourceQuality "1"]
[TimeControl "900+10"]

1. d4 {[%emt 0:00:00]} Nf6 {[%emt 0:00:00]} 2. c4 {[%emt 0:00:00]} g6 {[%emt 0:00:00]} 3. Nf3 {[%emt 0:00:00]} Bg7 {[%emt 0:00:01]} 4. g3 {[%emt 0:00:02]} O-O {[%emt 0:00:04]} 5. Bg2 {[%emt 0:00:09]} d6 {[%emt 0:00:40]} 6. O-O {[%emt 0:00:36]} Nbd7 {[%emt 0:00:03]} 7. Nc3 {[%emt 0:00:26]} c6 {[%emt 0:00:13]} 8. b3 {[%emt 0:02:43]} Qa5 {[%emt 0:01:31]} 9. Qd2 {[%emt 0:01:42]} Re8 {[%emt 0:00:26]} 10. Bb2 {[%emt 0:00:44]} h6 {[%emt 0:00:40]} 11. Rfd1 {[%emt 0:03:29]} Qh5 {[%emt 0:00:44]} 12. d5 {[%emt 0:01:13]} c5 {[%emt 0:02:49]} 13. h3 {[%emt 0:01:19]} Ne5 {[%emt 0:02:55]} 14. Nxe5 {[%emt 0:01:03]} dxe5 {[%emt 0:00:04]} 15. g4 {[%emt 0:01:09]} Qh4 {[%emt 0:00:07]} 16. Qe3 {[%emt 0:00:23]} h5 {[%emt 0:00:09]} 17. g5 {[%emt 0:01:14]} Nh7 {[%emt 0:00:02]} 18. Ne4 {[%emt 0:00:20]} Bf5 {[%emt 0:00:37]} 19. Ng3 {[%emt 0:00:50]} Bxh3 {[%emt 0:00:41]} 20. Bxe5 {[%emt 0:00:03]} Bxe5 {[%emt 0:00:28]} 21. Qxe5 {[%emt 0:00:01]} Nxg5 {[%emt 0:00:13]} 22. Rd3 {[%emt 0:00:12]} Bxg2 {[%emt 0:00:35]} 23. Kxg2 {[%emt 0:00:02]} Qh3+ {[%emt 0:00:01]} 24. Kg1 {[%emt 0:00:03]} Qg4 {[%emt 0:00:04]} 25. f3 {[%emt 0:00:53]} Qh4 {[%emt 0:00:50]} 26. Kg2 {[%emt 0:00:31]} f6 {[%emt 0:00:11]} 0-1

[Event "African Games Rapid Open 2019"]
[Site "Casablanca"]
[Date "2019.08.26"]
[Round "4.9"]
[White "Silva, David"]
[Black "Khetho, Phemelo"]
[Result "1-0"]
[ECO "C49"]
[WhiteElo "2239"]
[BlackElo "2178"]
[Annotator "NA"]
[PlyCount "77"]
[EventDate "2019.08.26"]
[EventType "team-tourn"]
[EventCountry "MAR"]
[SourceTitle "playchess.com"]
[Source "ChessBase"]
[SourceQuality "1"]
[TimeControl "900+10"]

1. e4 {[%emt 0:00:00]} e5 {[%emt 0:00:00]} 2. Nf3 {[%emt 0:00:00]} Nf6 {[%emt 0:00:00]} 3. Nc3 {[%emt 0:00:00]} Nc6 {[%emt 0:00:00]} 4. Bb5 {[%emt 0:00:35]} Bb4 {[%emt 0:00:00]} 5. O-O {[%emt 0:00:03]} O-O {[%emt 0:00:01]} 6. d3 {[%emt 0:00:03]} Bxc3 {[%emt 0:00:06]} 7. bxc3 {[%emt 0:00:02]} d6 {[%emt 0:00:01]} 8. h3 {[%emt 0:00:06]} Qe7 {[%emt 0:00:08]} 9. Re1 {[%emt 0:00:06]} Nd8 {[%emt 0:00:03]} 10. d4 {[%emt 0:00:09]} c6 {[%emt 0:00:06]} 11. Bd3 {[%emt 0:00:05]} h6 {[%emt 0:00:05]} 12. a4 {[%emt 0:00:02]} a5 {[%emt 0:00:16]} 13. Rb1 {[%emt 0:01:11]} Re8 {[%emt 0:00:15]} 14. Ba3 {[%emt 0:00:18]} Qc7 {[%emt 0:00:04]} 15. c4 {[%emt 0:00:19]} Ne6 {[%emt 0:00:40]} 16. Bf1 {[%emt 0:00:14]} c5 {[%emt 0:00:38]} 17. c3 {[%emt 0:00:10]} b6 {[%emt 0:00:26]} 18. d5 {[%emt 0:00:32]} Ng5 {[%emt 0:00:37]} 19. Nd2 {[%emt 0:00:10]} Bd7 {[%emt 0:00:11]} 20. Bd3 {[%emt 0:00:06]} Rab8 {[%emt 0:00:20]} 21. Nf1 {[%emt 0:00:02]} Qc8 {[%emt 0:00:14]} 22. Re3 {[%emt 0:00:11]} Bxh3 {[%emt 0:01:27]} 23. gxh3 {[%emt 0:00:02]} Nxh3+ {[%emt 0:00:02]} 24. Rxh3 {[%emt 0:00:27]} Qxh3 {[%emt 0:00:02]} 25. Ng3 {[%emt 0:01:33]} g6 {[%emt 0:01:23]} 26. Qf3 {[%emt 0:00:09]} Kg7 {[%emt 0:00:02]} 27. Nf5+ {[%emt 0:00:09]} Qxf5 {[%emt 0:00:14]} 28. exf5 e4 29. Qe3 {[%emt 0:00:11]} exd3 {[%emt 0:00:17]} 30. Qxd3 {[%emt 0:00:01]} g5 {[%emt 0:00:13]} 31. Bc1 {[%emt 0:00:11]} Nd7 {[%emt 0:00:03]} 32. f4 {[%emt 0:00:10]} g4 {[%emt 0:00:04]} 33. Be3 {[%emt 0:00:06]} h5 {[%emt 0:00:13]} 34. Bf2 {[%emt 0:00:01]} Nf6 {[%emt 0:00:14]} 35. Bh4 {[%emt 0:00:07]} Rb7 {[%emt 0:00:36]} 36. Re1 {[%emt 0:00:16]} Rbb8 {[%emt 0:00:18]} 37. Qb1 {[%emt 0:00:09]} Nd7 {[%emt 0:00:07]} 38. Rxe8 {[%emt 0:00:11]} Rxe8 {[%emt 0:00:01]} 39. Qb5 {[%emt 0:00:02]} 1-0

[Event "African Games Rapid Open 2019"]
[Site "Casablanca"]
[Date "2019.08.26"]
[Round "4.10"]
[White "Mwale, Joseph"]
[Black "Elarabi, Abobker Mohamed"]
[Result "1-0"]
[ECO "E06"]
[WhiteElo "2231"]
[BlackElo "2326"]
[Annotator "NA"]
[PlyCount "115"]
[EventDate "2019.08.26"]
[EventType "team-tourn"]
[EventCountry "MAR"]
[SourceTitle "playchess.com"]
[Source "ChessBase"]
[SourceQuality "1"]
[TimeControl "900+10"]

1. d4 {[%emt 0:00:00]} d5 {[%emt 0:00:00]} 2. c4 {[%emt 0:00:00]} e6 {[%emt 0:00:00]} 3. g3 {[%emt 0:00:00]} Nf6 {[%emt 0:00:11]} 4. Bg2 {[%emt 0:00:00]} Be7 {[%emt 0:00:31]} 5. Nf3 {[%emt 0:00:01]} O-O {[%emt 0:00:02]} 6. O-O {[%emt 0:00:01]} c5 {[%emt 0:00:07]} 7. cxd5 {[%emt 0:00:07]} Nxd5 {[%emt 0:00:14]} 8. Nc3 {[%emt 0:00:07]} Nxc3 {[%emt 0:00:24]} 9. bxc3 {[%emt 0:00:01]} Nc6 {[%emt 0:00:02]} 10. Rb1 {[%emt 0:00:26]} Qa5 {[%emt 0:00:11]} 11. Qb3 {[%emt 0:00:01]} Rd8 {[%emt 0:00:16]} 12. Rd1 {[%emt 0:00:04]} cxd4 {[%emt 0:00:19]} 13. cxd4 {[%emt 0:01:06]} Bd7 {[%emt 0:00:54]} 14. e4 {[%emt 0:02:21]} Be8 {[%emt 0:04:57]} 15. d5 {[%emt 0:02:45]} exd5 {[%emt 0:00:14]} 16. exd5 {[%emt 0:00:31]} Nb4 {[%emt 0:00:18]} 17. d6 {[%emt 0:01:05]} Rxd6 {[%emt 0:01:13]} 18. Rxd6 {[%emt 0:00:07]} Bxd6 {[%emt 0:00:01]} 19. Bd2 {[%emt 0:00:01]} Qxa2 {[%emt 0:04:07]} 20. Bxb4 {[%emt 0:00:15]} Qxb3 {[%emt 0:00:02]} 21. Rxb3 {[%emt 0:00:01]} Bxb4 {[%emt 0:00:14]} 22. Rxb4 {[%emt 0:00:02]} b5 {[%emt 0:00:07]} 23. Nd4 {[%emt 0:00:31]} Rc8 {[%emt 0:01:22]} 24. Rb1 {[%emt 0:00:01]} Rc5 {[%emt 0:00:55]} 25. Bf1 {[%emt 0:00:32]} a6 {[%emt 0:00:01]} 26. Ra1 {[%emt 0:00:01]} Rd5 {[%emt 0:00:30]} 27. Nb3 {[%emt 0:00:02]} Rd6 {[%emt 0:01:11]} 28. Nc5 {[%emt 0:00:07]} b4 {[%emt 0:00:03]} 29. Nxa6 {[%emt 0:00:22]} b3 {[%emt 0:00:03]} 30. Nc7 {[%emt 0:00:17]} Bc6 {[%emt 0:00:32]} 31. Rb1 {[%emt 0:00:06]} Rd7 {[%emt 0:00:17]} 32. Rxb3 {[%emt 0:00:05]} Kf8 {[%emt 0:00:09]} 33. Na6 {[%emt 0:00:11]} Rd1 {[%emt 0:00:12]} 34. Nc5 {[%emt 0:00:50]} Bd5 {[%emt 0:00:05]} 35. Rd3 {[%emt 0:00:15]} Rxd3 {[%emt 0:00:04]} 36. Bxd3 {[%emt 0:00:04]} g6 {[%emt 0:00:06]} 37. Kf1 {[%emt 0:00:03]} Ke7 {[%emt 0:00:05]} 38. Ke2 {[%emt 0:00:01]} h6 {[%emt 0:00:13]} 39. Ke3 {[%emt 0:00:02]} Bc6 {[%emt 0:00:13]} 40. Bc4 {[%emt 0:00:07]} f5 {[%emt 0:00:39]} 41. Kd4 {[%emt 0:00:13]} Kf6 {[%emt 0:00:02]} 42. Bd5 {[%emt 0:00:30]} Bb5 {[%emt 0:00:06]} 43. f4 {[%emt 0:00:11]} g5 {[%emt 0:00:03]} 44. Nd3 {[%emt 0:00:06]} Be8 {[%emt 0:00:09]} 45. Ne5 {[%emt 0:00:09]} gxf4 {[%emt 0:00:20]} 46. gxf4 {[%emt 0:00:01]} Ba4 {[%emt 0:00:12]} 47. Bc6 {[%emt 0:00:04]} Bc2 {[%emt 0:00:16]} 48. Nd7+ {[%emt 0:00:13]} Ke6 {[%emt 0:00:22]} 49. Nc5+ {[%emt 0:00:06]} Kf6 {[%emt 0:00:04]} 50. Bd5 {[%emt 0:00:01]} Bb1 {[%emt 0:00:17]} 51. Bb3 {[%emt 0:00:15]} h5 {[%emt 0:00:13]} 52. h4 {[%emt 0:00:10]} Kg7 {[%emt 0:00:14]} 53. Kc3 {[%emt 0:00:03]} Kf6 {[%emt 0:00:05]} 54. Bc4 {[%emt 0:01:39]} Kg6 {[%emt 0:00:09]} 55. Bd5 {[%emt 0:00:15]} Kf6 {[%emt 0:00:13]} 56. Kb2 {[%emt 0:00:04]} Be4 {[%emt 0:00:14]} 57. Nxe4+ {[%emt 0:00:03]} fxe4 {[%emt 0:00:01]} 58. Bxe4 {[%emt 0:00:02]} 1-0

[Event "African Games Rapid Open 2019"]
[Site "Casablanca"]
[Date "2019.08.26"]
[Round "4.11"]
[White "Amba, Oyon Marius Claude"]
[Black "Makoto, Rodwell"]
[Result "1-0"]
[ECO "C60"]
[WhiteElo "1911"]
[BlackElo "2373"]
[Annotator "NA"]
[PlyCount "78"]
[EventDate "2019.08.26"]
[EventType "team-tourn"]
[EventCountry "MAR"]
[SourceTitle "playchess.com"]
[Source "ChessBase"]
[SourceQuality "1"]
[TimeControl "900+10"]

1. e4 {[%emt 0:00:38]} e5 {[%emt 0:00:00]} 2. Nf3 {[%emt 0:00:05]} Nc6 {[%emt 0:00:00]} 3. Bb5 {[%emt 0:00:02]} g6 {[%emt 0:00:00]} 4. O-O {[%emt 0:00:03]} Bg7 {[%emt 0:00:00]} 5. d3 {[%emt 0:00:14]} a6 {[%emt 0:00:03]} 6. Ba4 {[%emt 0:00:01]} d6 {[%emt 0:00:03]} 7. h3 {[%emt 0:00:05]} Nf6 {[%emt 0:00:04]} 8. Bg5 {[%emt 0:00:02]} h6 {[%emt 0:00:02]} 9. Bh4 {[%emt 0:00:01]} O-O {[%emt 0:00:07]} 10. c3 {[%emt 0:00:03]} g5 {[%emt 0:00:27]} 11. Bg3 {[%emt 0:00:01]} Ne7 {[%emt 0:00:04]} 12. Nbd2 {[%emt 0:00:05]} Ng6 {[%emt 0:00:02]} 13. Re1 {[%emt 0:00:03]} Nh5 {[%emt 0:00:47]} 14. Bb3 {[%emt 0:00:49]} Nhf4 {[%emt 0:00:04]} 15. Kh2 {[%emt 0:00:03]} Nxd3 {[%emt 0:00:03]} 16. Re2 {[%emt 0:00:28]} h5 {[%emt 0:00:19]} 17. Kg1 {[%emt 0:00:31]} g4 {[%emt 0:00:34]} 18. hxg4 {[%emt 0:00:10]} Bxg4 {[%emt 0:00:02]} 19. Nc4 {[%emt 0:00:06]} Ndf4 {[%emt 0:00:13]} 20. Re3 {[%emt 0:00:34]} h4 {[%emt 0:00:27]} 21. Bxf4 {[%emt 0:00:14]} exf4 {[%emt 0:00:42]} 22. Rd3 {[%emt 0:00:07]} h3 {[%emt 0:00:42]} 23. gxh3 {[%emt 0:00:13]} Bxh3 {[%emt 0:00:08]} 24. Kh2 {[%emt 0:00:26]} Be6 {[%emt 0:01:22]} 25. Qg1 {[%emt 0:00:20]} Bh6 {[%emt 0:01:36]} 26. Nce5 {[%emt 0:00:44]} Qf6 {[%emt 0:02:09]} 27. Nxg6 {[%emt 0:02:50]} fxg6 {[%emt 0:00:02]} 28. Qg4 {[%emt 0:04:00]} Bxb3 {[%emt 0:00:02]} 29. axb3 {[%emt 0:00:02]} Rae8 {[%emt 0:00:19]} 30. Rg1 {[%emt 0:01:16]} Rxe4 {[%emt 0:02:12]} 31. Qh3 {[%emt 0:00:52]} Re7 {[%emt 0:02:38]} 32. Rd5 {[%emt 0:02:01]} Rff7 {[%emt 0:01:54]} 33. Qc8+ {[%emt 0:01:59]} Kg7 {[%emt 0:00:42]} 34. Rh5 {[%emt 0:00:04]} Qe6 {[%emt 0:00:51]} 35. Rxh6 {[%emt 0:01:14]} Kxh6 {[%emt 0:00:59]} 36. Qh8+ {[%emt 0:00:12]} Rh7 {[%emt 0:00:26]} 37. Qf8+ {[%emt 0:00:03]} Rhg7 {[%emt 0:00:43]} 38. Qh8+ {[%emt 0:00:26]} Rh7 {[%emt 0:00:04]} 39. Qf8+ {[%emt 0:00:02]} Reg7 1-0

[Event "African Games Rapid Open 2019"]
[Site "Casablanca"]
[Date "2019.08.26"]
[Round "4.12"]
[White "Tissir, Mohamed"]
[Black "Adu, Oladapo"]
[Result "1/2-1/2"]
[ECO "B87"]
[WhiteElo "2379"]
[BlackElo "2273"]
[Annotator "NA"]
[PlyCount "115"]
[EventDate "2019.08.26"]
[EventType "team-tourn"]
[EventCountry "MAR"]
[SourceTitle "playchess.com"]
[Source "ChessBase"]
[SourceQuality "1"]
[TimeControl "900+10"]

1. e4 {[%emt 0:00:00]} c5 {[%emt 0:00:00]} 2. Nc3 {[%emt 0:00:00]} a6 {[%emt 0:00:14]} 3. Nf3 {[%emt 0:00:00]} d6 {[%emt 0:00:13]} 4. d4 {[%emt 0:00:06]} cxd4 {[%emt 0:00:10]} 5. Nxd4 {[%emt 0:00:02]} Nf6 {[%emt 0:00:06]} 6. Bc4 {[%emt 0:00:04]} e6 {[%emt 0:00:02]} 7. Bb3 {[%emt 0:00:01]} b5 {[%emt 0:00:11]} 8. O-O {[%emt 0:00:09]} b4 {[%emt 0:00:03]} 9. Na4 {[%emt 0:00:06]} Bd7 {[%emt 0:00:02]} 10. c3 {[%emt 0:00:32]} Nc6 {[%emt 0:00:03]} 11. Nxc6 {[%emt 0:00:23]} Bxc6 {[%emt 0:00:03]} 12. f3 {[%emt 0:00:19]} d5 {[%emt 0:00:38]} 13. exd5 Nxd5 {[%emt 0:00:09]} 14. c4 {[%emt 0:00:48]} Nb6 {[%emt 0:00:18]} 15. Qxd8+ {[%emt 0:07:15]} Rxd8 {[%emt 0:00:03]} 16. Nxb6 {[%emt 0:00:05]} Bc5+ {[%emt 0:00:02]} 17. Kh1 {[%emt 0:00:01]} Bxb6 {[%emt 0:00:01]} 18. a3 {[%emt 0:00:44]} bxa3 {[%emt 0:00:18]} 19. Rxa3 {[%emt 0:00:02]} a5 {[%emt 0:00:35]} 20. Bg5 {[%emt 0:00:01]} f6 {[%emt 0:00:08]} 21. Bh4 {[%emt 0:00:13]} Ke7 {[%emt 0:00:01]} 22. Be1 {[%emt 0:00:41]} Rd3 {[%emt 0:00:13]} 23. Bc3 {[%emt 0:00:05]} Rhd8 {[%emt 0:01:03]} 24. Bc2 {[%emt 0:00:10]} Rxc3 {[%emt 0:03:09]} 25. Rxc3 {[%emt 0:00:31]} Bd4 {[%emt 0:00:09]} 26. Ra3 {[%emt 0:00:08]} Ra8 {[%emt 0:00:16]} 27. b3 {[%emt 0:00:12]} Kd6 {[%emt 0:00:05]} 28. Ra2 {[%emt 0:02:08]} f5 {[%emt 0:00:16]} 29. g3 {[%emt 0:00:03]} Kc5 {[%emt 0:00:05]} 30. Kg2 {[%emt 0:00:04]} g6 {[%emt 0:00:01]} 31. h4 {[%emt 0:00:08]} Kb4 {[%emt 0:00:11]} 32. Rd1 {[%emt 0:00:32]} e5 {[%emt 0:00:07]} 33. Rf1 {[%emt 0:00:15]} h5 {[%emt 0:01:10]} 34. Rd1 {[%emt 0:00:04]} Rd8 {[%emt 0:00:06]} 35. Rf1 {[%emt 0:00:35]} Re8 {[%emt 0:00:19]} 36. Rd1 {[%emt 0:00:04]} Ra8 {[%emt 0:00:18]} 37. Rf1 {[%emt 0:00:02]} e4 {[%emt 0:02:14]} 38. fxe4 {[%emt 0:00:18]} fxe4 {[%emt 0:00:01]} 39. Rf4 {[%emt 0:01:28]} Re8 {[%emt 0:00:02]} 40. Kf1 {[%emt 0:00:16]} Bc3 {[%emt 0:00:32]} 41. Ke2 {[%emt 0:00:12]} Kc5 {[%emt 0:00:01]} 42. Ke3 {[%emt 0:00:29]} Kb4 {[%emt 0:00:37]} 43. Rf7 {[%emt 0:01:01]} Rd8 {[%emt 0:00:27]} 44. Rc7 {[%emt 0:00:21]} Bd4+ {[%emt 0:01:16]} 45. Ke2 {[%emt 0:00:15]} Rd6 {[%emt 0:00:07]} 46. Rxc6 {[%emt 0:00:19]} Rxc6 47. Bxe4 {[%emt 0:00:02]} Re6 {[%emt 0:00:09]} 48. Kd3 {[%emt 0:00:01]} Bb6 {[%emt 0:00:16]} 49. Re2 {[%emt 0:00:26]} Bc7 {[%emt 0:00:13]} 50. Rf2 {[%emt 0:01:26]} Bxg3 {[%emt 0:00:55]} 51. Rg2 {[%emt 0:00:01]} Bxh4 {[%emt 0:00:51]} 52. Rxg6 {[%emt 0:00:01]} Rf6 {[%emt 0:01:01]} 53. Rxf6 {[%emt 0:00:28]} Bxf6 {[%emt 0:00:01]} 54. Kc2 {[%emt 0:00:00]} h4 {[%emt 0:00:03]} 55. Bf5 {[%emt 0:00:04]} Kc5 {[%emt 0:00:07]} 56. Bh3 {[%emt 0:00:06]} Kd4 {[%emt 0:00:02]} 57. Bd7 {[%emt 0:00:07]} Be7 {[%emt 0:00:02]} 58. Bc8 {[%emt 0:00:01]} 1/2-1/2

[Event "African Games Rapid Open 2019"]
[Site "Casablanca"]
[Date "2019.08.26"]
[Round "4.13"]
[White "Chumfwa, Stanley"]
[Black "Mushore, Emarald Takudzwa"]
[Result "1-0"]
[ECO "A05"]
[WhiteElo "2317"]
[BlackElo "2198"]
[Annotator "NA"]
[PlyCount "117"]
[EventDate "2019.08.26"]
[EventType "team-tourn"]
[EventCountry "MAR"]
[SourceTitle "playchess.com"]
[Source "ChessBase"]
[SourceQuality "1"]
[TimeControl "900+10"]

1. Nf3 {[%emt 0:00:00]} Nf6 {[%emt 0:00:00]} 2. g3 {[%emt 0:00:00]} b5 {[%emt 0:00:00]} 3. Bg2 {[%emt 0:00:08]} Bb7 {[%emt 0:00:00]} 4. O-O {[%emt 0:00:06]} e6 {[%emt 0:00:00]} 5. d3 {[%emt 0:00:13]} c5 {[%emt 0:00:02]} 6. e4 {[%emt 0:00:02]} d5 {[%emt 0:00:08]} 7. exd5 {[%emt 0:00:38]} Bxd5 {[%emt 0:00:05]} 8. Nc3 {[%emt 0:00:22]} Bc6 {[%emt 0:00:01]} 9. d4 {[%emt 0:03:58]} cxd4 {[%emt 0:00:03]} 10. Qxd4 {[%emt 0:00:43]} Qxd4 {[%emt 0:00:02]} 11. Nxd4 {[%emt 0:00:01]} Bxg2 {[%emt 0:00:02]} 12. Kxg2 {[%emt 0:00:02]} a6 {[%emt 0:00:02]} 13. a4 {[%emt 0:00:07]} b4 {[%emt 0:00:02]} 14. Na2 {[%emt 0:00:01]} Bc5 {[%emt 0:00:04]} 15. Nb3 {[%emt 0:00:04]} Be7 {[%emt 0:00:04]} 16. Bd2 {[%emt 0:00:03]} Nc6 {[%emt 0:00:03]} 17. c3 {[%emt 0:00:15]} Rb8 {[%emt 0:00:40]} 18. cxb4 {[%emt 0:00:58]} Nxb4 {[%emt 0:00:03]} 19. Na5 {[%emt 0:00:34]} Nxa2 {[%emt 0:00:24]} 20. Rxa2 {[%emt 0:00:01]} Rc8 {[%emt 0:00:19]} 21. b4 {[%emt 0:00:06]} Ne4 {[%emt 0:00:06]} 22. Be1 {[%emt 0:00:22]} O-O {[%emt 0:00:14]} 23. b5 {[%emt 0:00:30]} axb5 {[%emt 0:00:55]} 24. axb5 {[%emt 0:00:01]} Bc5 {[%emt 0:00:24]} 25. Nc6 {[%emt 0:00:57]} Rfe8 {[%emt 0:00:17]} 26. Rc2 {[%emt 0:01:35]} Bf8 {[%emt 0:00:12]} 27. Ba5 {[%emt 0:01:12]} Nd6 {[%emt 0:00:34]} 28. Rb1 {[%emt 0:01:51]} Nb7 {[%emt 0:00:16]} 29. Bb6 {[%emt 0:00:27]} f6 {[%emt 0:00:59]} 30. h4 {[%emt 0:01:02]} e5 {[%emt 0:00:16]} 31. Be3 {[%emt 0:00:38]} h5 {[%emt 0:01:25]} 32. Rd1 {[%emt 0:00:33]} Rc7 {[%emt 0:01:11]} 33. Kf3 {[%emt 0:00:32]} Kh7 {[%emt 0:00:21]} 34. Ra1 {[%emt 0:01:18]} Kg6 {[%emt 0:01:56]} 35. Nxe5+ {[%emt 0:00:44]} Rxe5 {[%emt 0:00:12]} 36. Rxc7 {[%emt 0:00:01]} Rxb5 {[%emt 0:00:03]} 37. Ra8 {[%emt 0:00:02]} Bd6 {[%emt 0:00:33]} 38. Rd7 {[%emt 0:00:11]} Be5 {[%emt 0:00:03]} 39. Rg8 {[%emt 0:00:19]} Nd6 {[%emt 0:00:18]} 40. Rdxg7+ {[%emt 0:00:24]} Kf5 {[%emt 0:00:01]} 41. Rh7 {[%emt 0:00:09]} Nc4 {[%emt 0:00:06]} 42. Rxh5+ {[%emt 0:00:05]} Ke6 {[%emt 0:00:02]} 43. Rc8 {[%emt 0:00:20]} Nd6 {[%emt 0:00:26]} 44. Rc5 {[%emt 0:00:12]} Rb7 {[%emt 0:00:16]} 45. g4 {[%emt 0:00:12]} Rf7 {[%emt 0:00:17]} 46. Ke2 {[%emt 0:00:07]} Ne4 {[%emt 0:00:24]} 47. Rcxe5+ {[%emt 0:00:08]} fxe5 {[%emt 0:00:03]} 48. Rh6+ {[%emt 0:00:01]} Kd5 {[%emt 0:00:10]} 49. g5 {[%emt 0:00:03]} Nc3+ {[%emt 0:00:05]} 50. Kd3 {[%emt 0:00:05]} Rc7 {[%emt 0:00:13]} 51. g6 {[%emt 0:00:21]} e4+ {[%emt 0:00:02]} 52. Kd2 {[%emt 0:00:01]} Nb1+ {[%emt 0:00:02]} 53. Ke2 {[%emt 0:00:09]} Ke6 {[%emt 0:00:28]} 54. g7+ {[%emt 0:00:28]} Kf7 {[%emt 0:00:03]} 55. Bd4 {[%emt 0:00:01]} Nc3+ {[%emt 0:00:25]} 56. Kf1 {[%emt 0:00:20]} Nd5 {[%emt 0:00:18]} 57. Rh8 {[%emt 0:00:07]} Rc1+ {[%emt 0:00:21]} 58. Kg2 {[%emt 0:00:03]} Nf4+ {[%emt 0:00:02]} 59. Kh2 1-0

[Event "African Games Rapid Open 2019"]
[Site "Casablanca"]
[Date "2019.08.26"]
[Round "4.14"]
[White "Koualet-Bebondi, Vianney Archeveq"]
[Black "Osunfuyi, Abimbola"]
[Result "0-1"]
[ECO "B50"]
[WhiteElo "1679"]
[BlackElo "2235"]
[Annotator "NA"]
[PlyCount "98"]
[EventDate "2019.08.26"]
[EventType "team-tourn"]
[EventCountry "MAR"]
[SourceTitle "playchess.com"]
[Source "ChessBase"]
[SourceQuality "1"]
[TimeControl "900+10"]

1. e4 {[%emt 0:00:00]} c5 {[%emt 0:00:00]} 2. Nf3 {[%emt 0:00:00]} d6 {[%emt 0:00:00]} 3. Nc3 {[%emt 0:00:00]} a6 {[%emt 0:00:04]} 4. Bc4 {[%emt 0:00:11]} e6 {[%emt 0:00:07]} 5. O-O {[%emt 0:00:06]} b5 {[%emt 0:00:02]} 6. Be2 {[%emt 0:00:12]} Bb7 {[%emt 0:00:04]} 7. d3 {[%emt 0:00:10]} Be7 {[%emt 0:00:04]} 8. a3 {[%emt 0:00:11]} Nf6 {[%emt 0:00:04]} 9. Bg5 {[%emt 0:00:14]} Nc6 {[%emt 0:00:06]} 10. h3 {[%emt 0:00:44]} Qc7 {[%emt 0:00:12]} 11. Nh2 {[%emt 0:00:21]} O-O {[%emt 0:00:38]} 12. f4 {[%emt 0:00:09]} b4 {[%emt 0:00:11]} 13. axb4 {[%emt 0:00:23]} cxb4 {[%emt 0:00:02]} 14. Na4 {[%emt 0:00:12]} a5 {[%emt 0:01:15]} 15. Bf3 {[%emt 0:00:18]} Nd4 {[%emt 0:00:27]} 16. c3 {[%emt 0:00:32]} Nxf3+ {[%emt 0:00:03]} 17. Nxf3 {[%emt 0:00:10]} Bc6 {[%emt 0:00:07]} 18. c4 {[%emt 0:01:04]} Rfd8 {[%emt 0:00:43]} 19. b3 {[%emt 0:00:18]} h6 {[%emt 0:02:27]} 20. Bh4 {[%emt 0:00:09]} d5 {[%emt 0:00:38]} 21. e5 {[%emt 0:00:03]} Ne8 {[%emt 0:00:10]} 22. Bxe7 {[%emt 0:00:40]} Qxe7 {[%emt 0:00:02]} 23. Nb2 {[%emt 0:00:49]} dxc4 {[%emt 0:00:27]} 24. bxc4 {[%emt 0:00:27]} a4 {[%emt 0:00:29]} 25. Nxa4 {[%emt 0:00:52]} Qa7+ {[%emt 0:00:05]} 26. d4 {[%emt 0:00:58]} Bxa4 {[%emt 0:00:02]} 27. Qd3 {[%emt 0:00:31]} Qb7 {[%emt 0:00:20]} 28. g4 {[%emt 0:00:42]} Bc6 {[%emt 0:00:03]} 29. Rxa8 {[%emt 0:00:30]} Rxa8 {[%emt 0:00:02]} 30. Nd2 {[%emt 0:00:58]} Ra3 {[%emt 0:00:07]} 31. Nb3 {[%emt 0:00:06]} Ba4 {[%emt 0:00:23]} 32. Rb1 {[%emt 0:00:09]} Bxb3 {[%emt 0:00:16]} 33. Rxb3 {[%emt 0:00:05]} Ra1+ {[%emt 0:00:07]} 34. Rb1 {[%emt 0:00:08]} Qa6 {[%emt 0:00:06]} 35. Rf1 {[%emt 0:01:17]} Rxf1+ {[%emt 0:00:05]} 36. Kxf1 {[%emt 0:00:04]} Qa1+ {[%emt 0:00:03]} 37. Ke2 {[%emt 0:00:10]} Qa2+ {[%emt 0:00:01]} 38. Kd1 {[%emt 0:00:07]} b3 {[%emt 0:00:02]} 39. Qc3 {[%emt 0:03:29]} b2 {[%emt 0:00:24]} 40. Qxb2 {[%emt 0:00:56]} Qxb2 {[%emt 0:00:03]} 41. c5 {[%emt 0:00:01]} Qxd4+ {[%emt 0:00:02]} 42. Ke2 {[%emt 0:00:00]} Qxf4 {[%emt 0:00:00]} 43. c6 {[%emt 0:00:10]} Qxe5+ {[%emt 0:00:06]} 44. Kf3 {[%emt 0:00:06]} Qd5+ {[%emt 0:00:03]} 45. Kg3 {[%emt 0:00:05]} Qxc6 {[%emt 0:00:01]} 46. h4 {[%emt 0:00:07]} Nf6 {[%emt 0:00:04]} 47. g5 {[%emt 0:00:06]} Nh5+ {[%emt 0:00:09]} 48. Kg4 {[%emt 0:00:07]} Qe4+ {[%emt 0:00:08]} 49. Kxh5 {[%emt 0:00:11]} Qf3# {[%emt 0:00:02]} 0-1